[Event "Titled Tuesday Blitz July 25 Late 2023"]
[White "Castella Garcia, Fausto"]
[Black "rikchessmx"]
[WhiteFideId "3501922"]
[WhiteElo "2452"]
[BlackElo "2273"]
[Result "1-0"]
[Round "6"]
[TimeControl "180+2"]
[Date "2023.07.25"]
[WhiteClock "0:00:09"]
[BlackClock "0:00:00"]
[Board "117"]

1. e4 {[%clk 0:02:57]}  e5 {[%clk 0:02:52]} 2. Nf3 {[%clk 0:02:57]}  Nc6 {[%clk 0:02:52]} 3. Bb5 {[%clk 0:02:56]}  Bc5 {[%clk 0:02:52]} 4. O-O {[%clk 0:02:55]}  a6 {[%clk 0:02:50]} 5. Bxc6 {[%clk 0:02:53]}  dxc6 {[%clk 0:02:50]} 6. Nxe5 {[%clk 0:02:54]}  Nf6 {[%clk 0:02:49]} 7. Nd3 {[%clk 0:02:47]}  Ba7 {[%clk 0:02:47]} 8. Nc3 {[%clk 0:02:47]}  O-O {[%clk 0:02:47]} 9. h3 {[%clk 0:02:26]}  Re8 {[%clk 0:02:41]} 10. Qf3 {[%clk 0:02:24]}  Qd4 {[%clk 0:02:31]} 11. Re1 {[%clk 0:02:20]}  b5 {[%clk 0:01:54]} 12. b4 {[%clk 0:02:04]}  Bb7 {[%clk 0:01:49]} 13. Bb2 {[%clk 0:02:01]}  Qc4 {[%clk 0:01:43]} 14. Qg3 {[%clk 0:01:51]}  Bd4 {[%clk 0:01:39]} 15. Qxc7 {[%clk 0:01:43]}  Rab8 {[%clk 0:01:36]} 16. e5 {[%clk 0:01:35]}  Nh5 {[%clk 0:01:28]} 17. e6 {[%clk 0:01:21]}  fxe6 {[%clk 0:01:21]} 18. Ne4 {[%clk 0:01:19]}  Bxb2 {[%clk 0:01:18]} 19. Nxb2 {[%clk 0:01:16]}  Qxc2 {[%clk 0:01:18]} 20. Nd6 {[%clk 0:01:12]}  Qxb2 {[%clk 0:01:08]} 21. Qf7+ {[%clk 0:01:07]}  Kh8 {[%clk 0:01:07]} 22. Nxe8 {[%clk 0:01:07]}  h6 {[%clk 0:00:49]} 23. Qxh5 {[%clk 0:01:03]}  c5 {[%clk 0:00:49]} 24. Nd6 {[%clk 0:00:54]}  Bd5 {[%clk 0:00:46]} 25. bxc5 {[%clk 0:00:50]}  Rf8 {[%clk 0:00:43]} 26. Rad1 {[%clk 0:00:42]}  Qd4 {[%clk 0:00:35]} 27. Re3 {[%clk 0:00:42]}  Qxc5 {[%clk 0:00:32]} 28. Nf7+ {[%clk 0:00:39]}  Kh7 {[%clk 0:00:32]} 29. Ne5 {[%clk 0:00:32]}  Qc2 {[%clk 0:00:23]} 30. Rg3 {[%clk 0:00:27]}  g5 {[%clk 0:00:20]} 31. Rxg5 {[%clk 0:00:20]}  Rf6 {[%clk 0:00:07]} 32. Rg3 {[%clk 0:00:11]}  Bf3 {[%clk 0:00:06]} 33. Nxf3 {[%clk 0:00:08]}  Qxd1+ {[%clk 0:00:06]} 34. Kh2 {[%clk 0:00:09]}  Qe2 {[%clk 0:00:05]} 35. Ng5+ {[%clk 0:00:08]}  Kg7 {[%clk 0:00:05]} 36. Qxe2 {[%clk 0:00:09]}  hxg5 {[%clk 0:00:03]} 37. Qe5 {[%clk 0:00:10]}  Kf7 {[%clk 0:00:04]} 38. Rxg5 {[%clk 0:00:09]}  Rxf2 {[%clk 0:00:04]} 39. Rh5 {[%clk 0:00:09]}  Kf8 {[%clk 0:00:05]} 40. Rh7 {[%clk 0:00:08]}  Rf7 {[%clk 0:00:04]} 41. Qb8+ {[%clk 0:00:08]}  Ke7 {[%clk 0:00:05]} 42. Qc7+ {[%clk 0:00:09]}  Kf6 {[%clk 0:00:06]} 43. Qxf7+ {[%clk 0:00:09]}  Ke5 {[%clk 0:00:07]} 44. Rh5+ {[%clk 0:00:08]}  Kd4 {[%clk 0:00:07]} 45. Qf4+ {[%clk 0:00:09]}  Kd3 {[%clk 0:00:06]} 46. Rc5 {[%clk 0:00:09]}  e5 {[%clk 0:00:05]} 47. Rc3+ {[%clk 0:00:09]}  Ke2 {[%clk 0:00:01]} 48. Qf3+ {[%clk 0:00:10]}  Ke1 {[%clk 0:00:00]} 49. Rc1+ {[%clk 0:00:09]} 1-0


[Site "https://www.chess.com"]

[Event "Titled Tuesday Blitz July 25 Late 2023"]
[White "Doluhanova, Evgeniya"]
[Black "Balla, Tamas-Kristof"]
[WhiteFideId "14112035"]
[BlackFideId "1208497"]
[WhiteElo "2269"]
[BlackElo "2446"]
[Result "0-1"]
[Round "6"]
[TimeControl "180+2"]
[Date "2023.07.25"]
[WhiteClock "0:00:23"]
[BlackClock "0:01:58"]
[Board "119"]

1. e4 {[%clk 0:02:55]}  c5 {[%clk 0:02:56]} 2. Nf3 {[%clk 0:02:55]}  Nc6 {[%clk 0:02:57]} 3. d4 {[%clk 0:02:55]}  cxd4 {[%clk 0:02:57]} 4. Nxd4 {[%clk 0:02:55]}  e5 {[%clk 0:02:58]} 5. Nb5 {[%clk 0:02:50]}  d6 {[%clk 0:02:59]} 6. c4 {[%clk 0:02:50]}  Be7 {[%clk 0:02:59]} 7. Bd3 {[%clk 0:02:46]}  a6 {[%clk 0:02:57]} 8. N5c3 {[%clk 0:02:45]}  Bg5 {[%clk 0:02:58]} 9. h4 {[%clk 0:02:41]}  Bxc1 {[%clk 0:02:57]} 10. Qxc1 {[%clk 0:02:40]}  Nge7 {[%clk 0:02:50]} 11. Nd2 {[%clk 0:02:39]}  Ng6 {[%clk 0:02:46]} 12. g3 {[%clk 0:02:34]}  Nd4 {[%clk 0:02:41]} 13. Ne2 {[%clk 0:02:02]}  Nxe2 {[%clk 0:02:34]} 14. Kxe2 {[%clk 0:01:58]}  Be6 {[%clk 0:02:35]} 15. h5 {[%clk 0:01:50]}  Ne7 {[%clk 0:02:35]} 16. Nf1 {[%clk 0:01:47]}  Nc6 {[%clk 0:02:34]} 17. Ne3 {[%clk 0:01:44]}  Nd4+ {[%clk 0:02:34]} 18. Kf1 {[%clk 0:01:44]}  h6 {[%clk 0:02:27]} 19. Nc2 {[%clk 0:01:44]}  Nc6 {[%clk 0:02:17]} 20. b4 {[%clk 0:01:40]}  Rc8 {[%clk 0:02:14]} 21. Qe3 {[%clk 0:01:38]}  O-O {[%clk 0:02:14]} 22. Kg2 {[%clk 0:01:36]}  f5 {[%clk 0:02:10]} 23. exf5 {[%clk 0:01:33]}  Bxf5 {[%clk 0:02:10]} 24. Bxf5 {[%clk 0:01:31]}  Rxf5 {[%clk 0:02:11]} 25. Rad1 {[%clk 0:01:30]}  Qf6 {[%clk 0:02:10]} 26. g4 {[%clk 0:01:19]}  Rf4 {[%clk 0:02:08]} 27. f3 {[%clk 0:01:11]}  Rf8 {[%clk 0:02:07]} 28. Rhf1 {[%clk 0:01:00]}  e4 {[%clk 0:02:00]} 29. Ne1 {[%clk 0:00:30]}  exf3+ {[%clk 0:02:00]} 30. Kh3 {[%clk 0:00:23]}  f2 {[%clk 0:01:58]} 0-1


[Site "https://www.chess.com"]

[Event "Titled Tuesday Blitz July 25 Late 2023"]
[White "Moore, Nicholas"]
[Black "Cardozo Munar, Carlos Eduardo"]
[WhiteFideId "4303709"]
[BlackFideId "4409477"]
[WhiteElo "2445"]
[BlackElo "2257"]
[Result "1-0"]
[Round "6"]
[TimeControl "180+2"]
[Date "2023.07.25"]
[WhiteClock "0:00:20"]
[BlackClock "0:00:13"]
[Board "120"]

1. c4 {[%clk 0:03:00]}  Nf6 {[%clk 0:02:58]} 2. g3 {[%clk 0:03:01]}  g6 {[%clk 0:02:51]} 3. Bg2 {[%clk 0:03:01]}  Bg7 {[%clk 0:02:52]} 4. Nc3 {[%clk 0:03:00]}  O-O {[%clk 0:02:52]} 5. d4 {[%clk 0:02:58]}  c6 {[%clk 0:02:45]} 6. e4 {[%clk 0:02:50]}  d6 {[%clk 0:02:44]} 7. h3 {[%clk 0:02:48]}  e5 {[%clk 0:02:44]} 8. Nf3 {[%clk 0:02:34]}  Re8 {[%clk 0:02:31]} 9. O-O {[%clk 0:02:27]}  exd4 {[%clk 0:02:28]} 10. Nxd4 {[%clk 0:02:26]}  Na6 {[%clk 0:02:25]} 11. Re1 {[%clk 0:02:21]}  Nc5 {[%clk 0:02:17]} 12. Bf4 {[%clk 0:02:17]}  a5 {[%clk 0:02:12]} 13. b3 {[%clk 0:02:15]}  Qb6 {[%clk 0:02:08]} 14. Bxd6 {[%clk 0:01:35]}  Ncxe4 {[%clk 0:01:41]} 15. Nxe4 {[%clk 0:01:32]}  Nxe4 {[%clk 0:01:41]} 16. c5 {[%clk 0:01:26]}  Qb4 {[%clk 0:01:41]} 17. Nc2 {[%clk 0:01:13]}  Qxe1+ {[%clk 0:01:19]} 18. Nxe1 {[%clk 0:01:04]}  Bxa1 {[%clk 0:01:14]} 19. Qxa1 {[%clk 0:01:05]}  Be6 {[%clk 0:01:07]} 20. Bxe4 {[%clk 0:01:02]}  a4 {[%clk 0:01:07]} 21. Qb1 {[%clk 0:00:31]}  axb3 {[%clk 0:01:06]} 22. axb3 {[%clk 0:00:31]}  Bxb3 {[%clk 0:01:00]} 23. Bg2 {[%clk 0:00:23]}  Ba2 {[%clk 0:00:55]} 24. Qc1 {[%clk 0:00:22]}  Re6 {[%clk 0:00:49]} 25. Nc2 {[%clk 0:00:22]}  Rae8 {[%clk 0:00:49]} 26. Ne3 {[%clk 0:00:23]}  h5 {[%clk 0:00:46]} 27. h4 {[%clk 0:00:23]}  Bb3 {[%clk 0:00:45]} 28. Qb2 {[%clk 0:00:23]}  Ba4 {[%clk 0:00:36]} 29. Qb4 {[%clk 0:00:23]}  Bb5 {[%clk 0:00:36]} 30. Qf4 {[%clk 0:00:22]}  Kg7 {[%clk 0:00:31]} 31. Bh3 {[%clk 0:00:22]}  Re4 {[%clk 0:00:28]} 32. Qf3 {[%clk 0:00:22]}  Ra4 {[%clk 0:00:22]} 33. Bd7 {[%clk 0:00:22]}  Ra1+ {[%clk 0:00:22]} 34. Kh2 {[%clk 0:00:22]}  Rea8 {[%clk 0:00:15]} 35. Be5+ {[%clk 0:00:22]}  Kf8 {[%clk 0:00:15]} 36. Bxa1 {[%clk 0:00:19]}  Rxa1 {[%clk 0:00:16]} 37. Be6 {[%clk 0:00:18]}  f5 {[%clk 0:00:14]} 38. Nxf5 {[%clk 0:00:17]}  gxf5 {[%clk 0:00:13]} 39. Qxf5+ {[%clk 0:00:18]}  Kg7 {[%clk 0:00:13]} 40. Qf7+ {[%clk 0:00:19]}  Kh8 {[%clk 0:00:13]} 41. Qg8# {[%clk 0:00:20]} 1-0


[Site "https://www.chess.com"]

[Event "Titled Tuesday Blitz July 25 Late 2023"]
[White "Lopez Perdomo, Juan David"]
[Black "Goncalves, Davi Sulzbacher"]
[WhiteFideId "4405137"]
[BlackFideId "2154510"]
[WhiteElo "2221"]
[BlackElo "2439"]
[Result "0-1"]
[Round "6"]
[TimeControl "180+2"]
[Date "2023.07.25"]
[WhiteClock "0:00:02"]
[BlackClock "0:01:04"]
[Board "122"]

1. d4 {[%clk 0:02:57]}  Nf6 {[%clk 0:02:59]} 2. e3 {[%clk 0:02:57]}  c5 {[%clk 0:02:59]} 3. c3 {[%clk 0:02:57]}  d5 {[%clk 0:02:58]} 4. Bd3 {[%clk 0:02:57]}  Nc6 {[%clk 0:02:59]} 5. Ne2 {[%clk 0:02:51]}  Bg4 {[%clk 0:02:58]} 6. O-O {[%clk 0:02:46]}  e6 {[%clk 0:02:58]} 7. f3 {[%clk 0:02:24]}  Bh5 {[%clk 0:02:58]} 8. Qa4 {[%clk 0:02:24]}  Bd6 {[%clk 0:02:51]} 9. dxc5 {[%clk 0:02:20]}  Bxc5 {[%clk 0:02:50]} 10. Nd4 {[%clk 0:02:21]}  Qb6 {[%clk 0:02:44]} 11. b4 {[%clk 0:01:49]}  Bxd4 {[%clk 0:02:12]} 12. exd4 {[%clk 0:01:50]}  O-O {[%clk 0:02:11]} 13. Nd2 {[%clk 0:01:30]}  Nxd4 {[%clk 0:02:08]} 14. Kh1 {[%clk 0:01:05]}  Rac8 {[%clk 0:01:55]} 15. Bb2 {[%clk 0:00:23]}  Nc6 {[%clk 0:01:54]} 16. c4 {[%clk 0:00:21]}  Qxb4 {[%clk 0:01:53]} 17. Qc2 {[%clk 0:00:12]}  Bg6 {[%clk 0:01:52]} 18. Bxf6 {[%clk 0:00:11]}  gxf6 {[%clk 0:01:51]} 19. Rab1 {[%clk 0:00:11]}  Qe7 {[%clk 0:01:32]} 20. cxd5 {[%clk 0:00:10]}  Nb4 {[%clk 0:01:31]} 21. Qb3 {[%clk 0:00:10]}  Nxd3 {[%clk 0:01:31]} 22. dxe6 {[%clk 0:00:10]}  Qxe6 {[%clk 0:01:26]} 23. Qxb7 {[%clk 0:00:10]}  Rc2 {[%clk 0:01:22]} 24. Ne4 {[%clk 0:00:09]}  Bxe4 {[%clk 0:01:16]} 25. fxe4 {[%clk 0:00:09]}  Qg4 {[%clk 0:01:15]} 26. e5 {[%clk 0:00:07]}  fxe5 {[%clk 0:01:07]} 27. Rb3 {[%clk 0:00:05]}  e4 {[%clk 0:01:04]} 28. h3 {[%clk 0:00:02]}  Qxg2# {[%clk 0:01:04]} 0-1


[Site "https://www.chess.com"]

[Event "Titled Tuesday Blitz July 25 Late 2023"]
[White "campochess"]
[Black "Arnold, Ken"]
[BlackFideId "2056836"]
[WhiteElo "2178"]
[BlackElo "2436"]
[Result "1-0"]
[Round "6"]
[TimeControl "180+2"]
[Date "2023.07.25"]
[WhiteClock "0:01:08"]
[BlackClock "0:00:47"]
[Board "125"]

1. d4 {[%clk 0:02:59]}  Nf6 {[%clk 0:02:59]} 2. Bg5 {[%clk 0:02:57]}  d5 {[%clk 0:02:59]} 3. Bxf6 {[%clk 0:02:57]}  exf6 {[%clk 0:02:59]} 4. e3 {[%clk 0:02:57]}  c6 {[%clk 0:02:59]} 5. Bd3 {[%clk 0:02:57]}  f5 {[%clk 0:02:59]} 6. Nf3 {[%clk 0:02:54]}  Be6 {[%clk 0:02:57]} 7. Nbd2 {[%clk 0:02:49]}  Nd7 {[%clk 0:02:57]} 8. h4 {[%clk 0:02:44]}  Be7 {[%clk 0:02:56]} 9. g3 {[%clk 0:02:31]}  a5 {[%clk 0:02:53]} 10. a4 {[%clk 0:02:29]}  Qb6 {[%clk 0:02:50]} 11. b3 {[%clk 0:02:28]}  Bb4 {[%clk 0:02:49]} 12. Kf1 {[%clk 0:02:25]}  Rc8 {[%clk 0:02:45]} 13. Rc1 {[%clk 0:02:21]}  Ba3 {[%clk 0:02:44]} 14. Rb1 {[%clk 0:02:21]}  Nf6 {[%clk 0:02:39]} 15. c4 {[%clk 0:02:20]}  Bb4 {[%clk 0:02:37]} 16. c5 {[%clk 0:02:16]}  Qc7 {[%clk 0:02:35]} 17. Ne5 {[%clk 0:02:16]}  Nd7 {[%clk 0:02:32]} 18. Nxd7 {[%clk 0:02:13]}  Bxd7 {[%clk 0:02:29]} 19. Nf3 {[%clk 0:02:12]}  b6 {[%clk 0:02:26]} 20. cxb6 {[%clk 0:02:10]}  Qxb6 {[%clk 0:02:26]} 21. Rc1 {[%clk 0:02:10]}  O-O {[%clk 0:02:21]} 22. Ne5 {[%clk 0:02:09]}  Be6 {[%clk 0:02:20]} 23. h5 {[%clk 0:02:01]}  f6 {[%clk 0:02:14]} 24. Nf3 {[%clk 0:01:58]}  c5 {[%clk 0:02:13]} 25. Bb5 {[%clk 0:01:52]}  f4 {[%clk 0:02:00]} 26. gxf4 {[%clk 0:01:48]}  Bg4 {[%clk 0:01:56]} 27. Rh4 {[%clk 0:01:45]}  f5 {[%clk 0:01:55]} 28. Bd7 {[%clk 0:01:40]}  Rc7 {[%clk 0:01:53]} 29. Rxg4 {[%clk 0:01:39]}  fxg4 {[%clk 0:01:52]} 30. Bxg4 {[%clk 0:01:39]}  c4 {[%clk 0:01:49]} 31. bxc4 {[%clk 0:01:34]}  dxc4 {[%clk 0:01:49]} 32. Ne5 {[%clk 0:01:34]}  c3 {[%clk 0:01:49]} 33. Qd3 {[%clk 0:01:32]}  Ba3 {[%clk 0:01:19]} 34. Rxc3 {[%clk 0:01:23]}  Bb4 {[%clk 0:01:12]} 35. Rxc7 {[%clk 0:01:21]}  Qxc7 {[%clk 0:01:12]} 36. Qc4+ {[%clk 0:01:21]}  Qxc4+ {[%clk 0:01:11]} 37. Nxc4 {[%clk 0:01:21]}  Kf7 {[%clk 0:01:10]} 38. Ke2 {[%clk 0:01:21]}  Ke7 {[%clk 0:01:10]} 39. Kd3 {[%clk 0:01:21]}  g6 {[%clk 0:01:04]} 40. hxg6 {[%clk 0:01:20]}  hxg6 {[%clk 0:01:04]} 41. Ne5 {[%clk 0:01:19]}  Rg8 {[%clk 0:01:00]} 42. e4 {[%clk 0:01:19]}  Bd6 {[%clk 0:00:59]} 43. Nc6+ {[%clk 0:01:15]}  Kf7 {[%clk 0:00:56]} 44. e5 {[%clk 0:01:15]}  Bb4 {[%clk 0:00:55]} 45. d5 {[%clk 0:01:15]}  Rh8 {[%clk 0:00:54]} 46. Be6+ {[%clk 0:01:09]}  Ke8 {[%clk 0:00:53]} 47. d6 {[%clk 0:01:09]}  Rh3+ {[%clk 0:00:47]} 48. Bxh3 {[%clk 0:01:08]} 1-0


[Site "https://www.chess.com"]

[Event "Titled Tuesday Blitz July 25 Late 2023"]
[White "BeautiFullMindChess"]
[Black "Dias, Paulo"]
[BlackFideId "1900803"]
[WhiteElo "2151"]
[BlackElo "2425"]
[Result "1-0"]
[Round "6"]
[TimeControl "180+2"]
[Date "2023.07.25"]
[WhiteClock "0:00:10"]
[BlackClock "0:00:06"]
[Board "127"]

1. e4 {[%clk 0:02:55]}  c5 {[%clk 0:02:59]} 2. c3 {[%clk 0:02:50]}  d5 {[%clk 0:02:57]} 3. exd5 {[%clk 0:02:49]}  Qxd5 {[%clk 0:02:57]} 4. d4 {[%clk 0:02:50]}  Nc6 {[%clk 0:02:55]} 5. Nf3 {[%clk 0:02:49]}  Bf5 {[%clk 0:02:52]} 6. Nbd2 {[%clk 0:02:48]}  cxd4 {[%clk 0:02:52]} 7. Bc4 {[%clk 0:02:47]}  Qd7 {[%clk 0:02:51]} 8. O-O {[%clk 0:02:13]}  Nf6 {[%clk 0:02:48]} 9. Re1 {[%clk 0:02:00]}  e6 {[%clk 0:02:48]} 10. Nxd4 {[%clk 0:01:40]}  Nxd4 {[%clk 0:02:45]} 11. cxd4 {[%clk 0:01:41]}  Be7 {[%clk 0:02:41]} 12. Nf3 {[%clk 0:01:36]}  O-O {[%clk 0:02:25]} 13. h3 {[%clk 0:01:26]}  a6 {[%clk 0:02:24]} 14. Ne5 {[%clk 0:01:17]}  Qd8 {[%clk 0:02:18]} 15. Be3 {[%clk 0:01:14]}  Rc8 {[%clk 0:02:17]} 16. Be2 {[%clk 0:01:12]}  Nd5 {[%clk 0:02:16]} 17. Bf3 {[%clk 0:01:12]}  Bf6 {[%clk 0:02:15]} 18. Qb3 {[%clk 0:01:10]}  b5 {[%clk 0:01:59]} 19. Rac1 {[%clk 0:01:06]}  Rxc1 {[%clk 0:01:50]} 20. Rxc1 {[%clk 0:01:05]}  Bxe5 {[%clk 0:01:44]} 21. dxe5 {[%clk 0:01:05]}  Nxe3 {[%clk 0:01:44]} 22. Qxe3 {[%clk 0:01:01]}  Qa5 {[%clk 0:01:44]} 23. a3 {[%clk 0:00:56]}  Rd8 {[%clk 0:01:41]} 24. g4 {[%clk 0:00:54]}  Bg6 {[%clk 0:01:37]} 25. h4 {[%clk 0:00:53]}  h6 {[%clk 0:01:36]} 26. h5 {[%clk 0:00:48]}  Bh7 {[%clk 0:01:33]} 27. g5 {[%clk 0:00:49]}  hxg5 {[%clk 0:01:29]} 28. Qxg5 {[%clk 0:00:49]}  Bf5 {[%clk 0:01:19]} 29. h6 {[%clk 0:00:44]}  Bg6 {[%clk 0:01:14]} 30. hxg7 {[%clk 0:00:41]}  Kxg7 {[%clk 0:01:14]} 31. Qf6+ {[%clk 0:00:41]}  Kg8 {[%clk 0:01:09]} 32. b4 {[%clk 0:00:16]}  Qb6 {[%clk 0:01:04]} 33. Rc6 {[%clk 0:00:17]}  Qd4 {[%clk 0:01:00]} 34. Rxe6 {[%clk 0:00:18]}  Rc8 {[%clk 0:00:37]} 35. Rxa6 {[%clk 0:00:17]}  Qd3 {[%clk 0:00:26]} 36. Rd6 {[%clk 0:00:16]}  Rc1+ {[%clk 0:00:24]} 37. Kg2 {[%clk 0:00:16]}  Qf1+ {[%clk 0:00:24]} 38. Kg3 {[%clk 0:00:16]}  Qg1+ {[%clk 0:00:24]} 39. Bg2 {[%clk 0:00:13]}  Rc3+ {[%clk 0:00:21]} 40. f3 {[%clk 0:00:14]}  Qe1+ {[%clk 0:00:20]} 41. Kh2 {[%clk 0:00:13]}  Rc8 {[%clk 0:00:19]} 42. e6 {[%clk 0:00:12]}  Rf8 {[%clk 0:00:15]} 43. e7 {[%clk 0:00:11]}  Re8 {[%clk 0:00:06]} 44. Rd8 {[%clk 0:00:10]} 1-0


[Site "https://www.chess.com"]

[Event "Titled Tuesday Blitz July 25 Late 2023"]
[White "Willy, Stephen"]
[Black "Osiecki, Stanislaw"]
[WhiteFideId "30981468"]
[BlackFideId "1102990"]
[WhiteElo "2420"]
[BlackElo "2056"]
[Result "1-0"]
[Round "6"]
[TimeControl "180+2"]
[Date "2023.07.25"]
[WhiteClock "0:02:15"]
[BlackClock "0:02:09"]
[Board "129"]

1. e4 {[%clk 0:03:00]}  e6 {[%clk 0:02:56]} 2. Nc3 {[%clk 0:02:58]}  d5 {[%clk 0:02:56]} 3. Nf3 {[%clk 0:02:58]}  dxe4 {[%clk 0:02:55]} 4. Nxe4 {[%clk 0:02:59]}  Nd7 {[%clk 0:02:54]} 5. d4 {[%clk 0:02:59]}  Ngf6 {[%clk 0:02:55]} 6. Bd3 {[%clk 0:03:00]}  Nxe4 {[%clk 0:02:54]} 7. Bxe4 {[%clk 0:02:59]}  Nf6 {[%clk 0:02:55]} 8. Bd3 {[%clk 0:03:00]}  c5 {[%clk 0:02:54]} 9. dxc5 {[%clk 0:03:01]}  Bxc5 {[%clk 0:02:53]} 10. Qe2 {[%clk 0:02:59]}  h6 {[%clk 0:02:48]} 11. Bd2 {[%clk 0:02:56]}  O-O {[%clk 0:02:46]} 12. O-O-O {[%clk 0:02:53]}  Qe7 {[%clk 0:02:42]} 13. g4 {[%clk 0:02:51]}  Nd5 {[%clk 0:02:38]} 14. g5 {[%clk 0:02:35]}  hxg5 {[%clk 0:02:31]} 15. Bxg5 {[%clk 0:02:27]}  f6 {[%clk 0:02:31]} 16. Qe4 {[%clk 0:02:22]}  fxg5 {[%clk 0:02:09]} 17. Qh7+ {[%clk 0:02:19]}  Kf7 {[%clk 0:02:09]} 18. Qh5+ {[%clk 0:02:15]}  Kf6 {[%clk 0:02:09]} 19. Qg6# {[%clk 0:02:15]} 1-0


[Site "https://www.chess.com"]

[Event "Titled Tuesday Blitz July 25 Late 2023"]
[White "zano2023"]
[Black "Eggleston, Thomas A"]
[BlackFideId "412139"]
[WhiteElo "2027"]
[BlackElo "2412"]
[Result "1-0"]
[Round "6"]
[TimeControl "180+2"]
[Date "2023.07.25"]
[WhiteClock "0:00:25"]
[BlackClock "0:00:00"]
[Board "131"]

1. d4 {[%clk 0:03:00]}  e6 {[%clk 0:02:59]} 2. Nf3 {[%clk 0:03:00]}  f5 {[%clk 0:02:59]} 3. d5 {[%clk 0:02:59]}  Bb4+ {[%clk 0:02:58]} 4. c3 {[%clk 0:02:59]}  Bd6 {[%clk 0:02:58]} 5. dxe6 {[%clk 0:02:59]}  dxe6 {[%clk 0:02:58]} 6. Bg5 {[%clk 0:02:53]}  Nf6 {[%clk 0:02:57]} 7. Nbd2 {[%clk 0:02:50]}  h6 {[%clk 0:02:52]} 8. Bxf6 {[%clk 0:02:49]}  Qxf6 {[%clk 0:02:51]} 9. e4 {[%clk 0:02:49]}  Nc6 {[%clk 0:02:50]} 10. Bb5 {[%clk 0:02:48]}  Bd7 {[%clk 0:02:45]} 11. Qe2 {[%clk 0:02:46]}  e5 {[%clk 0:02:30]} 12. exf5 {[%clk 0:02:25]}  O-O-O {[%clk 0:02:13]} 13. Ne4 {[%clk 0:02:20]}  Qxf5 {[%clk 0:02:12]} 14. Nxd6+ {[%clk 0:02:20]}  cxd6 {[%clk 0:02:12]} 15. O-O-O {[%clk 0:02:16]}  Be6 {[%clk 0:02:07]} 16. Bd3 {[%clk 0:02:13]}  Qf7 {[%clk 0:02:05]} 17. b3 {[%clk 0:02:12]}  Qc7 {[%clk 0:01:45]} 18. Kb2 {[%clk 0:02:10]}  d5 {[%clk 0:01:37]} 19. Bb5 {[%clk 0:02:09]}  e4 {[%clk 0:01:31]} 20. Nd4 {[%clk 0:02:09]}  Bd7 {[%clk 0:01:30]} 21. Bxc6 {[%clk 0:02:03]}  bxc6 {[%clk 0:01:29]} 22. Qa6+ {[%clk 0:02:01]}  Kb8 {[%clk 0:01:29]} 23. b4 {[%clk 0:01:54]}  Rhf8 {[%clk 0:01:28]} 24. Rd2 {[%clk 0:01:53]}  c5 {[%clk 0:01:08]} 25. Nb5 {[%clk 0:01:41]}  Qb6 {[%clk 0:01:06]} 26. Qxb6+ {[%clk 0:01:38]}  axb6 {[%clk 0:01:06]} 27. a4 {[%clk 0:01:29]}  Bc6 {[%clk 0:01:02]} 28. bxc5 {[%clk 0:01:28]}  bxc5 {[%clk 0:01:01]} 29. Ka3 {[%clk 0:01:27]}  Rf7 {[%clk 0:00:42]} 30. Rb2 {[%clk 0:01:23]}  Ka8 {[%clk 0:00:38]} 31. Rd1 {[%clk 0:01:19]}  Rdf8 {[%clk 0:00:34]} 32. Rdd2 {[%clk 0:01:19]}  Rb7 {[%clk 0:00:21]} 33. Nd6 {[%clk 0:01:15]}  Ra7 {[%clk 0:00:17]} 34. Nb5 {[%clk 0:01:08]}  Rb8 {[%clk 0:00:16]} 35. c4 {[%clk 0:00:52]}  dxc4 {[%clk 0:00:13]} 36. Nc3 {[%clk 0:00:40]}  Rxb2 {[%clk 0:00:11]} 37. Rxb2 {[%clk 0:00:40]}  Rb7 {[%clk 0:00:11]} 38. Rxb7 {[%clk 0:00:36]}  Kxb7 {[%clk 0:00:12]} 39. g3 {[%clk 0:00:30]}  Kb6 {[%clk 0:00:12]} 40. Nd1 {[%clk 0:00:27]}  Ka5 {[%clk 0:00:11]} 41. Ne3 {[%clk 0:00:27]}  Bxa4 {[%clk 0:00:09]} 42. Nxc4+ {[%clk 0:00:27]}  Kb5 {[%clk 0:00:09]} 43. Nd6+ {[%clk 0:00:27]}  Kc6 {[%clk 0:00:09]} 44. Nxe4 {[%clk 0:00:28]}  Bc2 {[%clk 0:00:09]} 45. Nc3 {[%clk 0:00:25]}  Bh7 {[%clk 0:00:07]} 46. Kb2 {[%clk 0:00:26]}  c4 {[%clk 0:00:07]} 47. Ne2 {[%clk 0:00:25]}  Kc5 {[%clk 0:00:07]} 48. Kc3 {[%clk 0:00:26]}  Bd3 {[%clk 0:00:06]} 49. Nf4 {[%clk 0:00:25]}  Bh7 {[%clk 0:00:03]} 50. Ne6+ {[%clk 0:00:24]}  Kd5 {[%clk 0:00:00]} 51. Nxg7 {[%clk 0:00:25]} 1-0


[Site "https://www.chess.com"]

[Event "Titled Tuesday Blitz July 25 Late 2023"]
[White "Masterisback04"]
[Black "Der_Balak_3Halak"]
[WhiteElo "1866"]
[BlackElo "2409"]
[Result "0-1"]
[Round "6"]
[TimeControl "180+2"]
[Date "2023.07.25"]
[WhiteClock "0:02:11"]
[BlackClock "0:02:21"]
[Board "132"]

1. e4 {[%clk 0:02:57]}  c5 {[%clk 0:02:59]} 2. Nf3 {[%clk 0:02:53]}  d6 {[%clk 0:03:00]} 3. Bb5+ {[%clk 0:02:53]}  Bd7 {[%clk 0:02:59]} 4. Bxd7+ {[%clk 0:02:52]}  Qxd7 {[%clk 0:03:00]} 5. O-O {[%clk 0:02:51]}  Nc6 {[%clk 0:02:58]} 6. c3 {[%clk 0:02:50]}  Nf6 {[%clk 0:02:57]} 7. Re1 {[%clk 0:02:49]}  e6 {[%clk 0:02:57]} 8. d4 {[%clk 0:02:49]}  cxd4 {[%clk 0:02:57]} 9. cxd4 {[%clk 0:02:48]}  d5 {[%clk 0:02:58]} 10. e5 {[%clk 0:02:48]}  Ne4 {[%clk 0:02:58]} 11. Nbd2 {[%clk 0:02:49]}  Nxd2 {[%clk 0:02:45]} 12. Bxd2 {[%clk 0:02:48]}  Be7 {[%clk 0:02:40]} 13. Rc1 {[%clk 0:02:48]}  O-O {[%clk 0:02:38]} 14. Rc3 {[%clk 0:02:47]}  Rae8 {[%clk 0:02:38]} 15. h4 {[%clk 0:02:44]}  f6 {[%clk 0:02:36]} 16. Rd3 {[%clk 0:02:37]}  fxe5 {[%clk 0:02:27]} 17. Nxe5 {[%clk 0:02:37]}  Nxe5 {[%clk 0:02:26]} 18. dxe5 {[%clk 0:02:36]}  Bxh4 {[%clk 0:02:21]} 19. Qg4 {[%clk 0:02:34]}  Bxf2+ {[%clk 0:02:21]} 20. Kh1 {[%clk 0:02:11]}  Bxe1 {[%clk 0:02:21]} 0-1


[Site "https://www.chess.com"]

[Event "Titled Tuesday Blitz July 25 Late 2023"]
[White "Petesch, Gabriel"]
[Black "Alahakoon, Isuru"]
[WhiteFideId "2032465"]
[BlackFideId "9900993"]
[WhiteElo "2566"]
[BlackElo "2345"]
[Result "1-0"]
[Round "6"]
[TimeControl "180+2"]
[Date "2023.07.25"]
[WhiteClock "0:00:22"]
[BlackClock "0:00:00"]
[Board "133"]

1. e4 {[%clk 0:03:00]}  e5 {[%clk 0:02:58]} 2. Nc3 {[%clk 0:02:59]}  g6 {[%clk 0:02:55]} 3. h4 {[%clk 0:02:52]}  h6 {[%clk 0:02:49]} 4. d4 {[%clk 0:02:44]}  Nc6 {[%clk 0:02:43]} 5. dxe5 {[%clk 0:02:38]}  Nxe5 {[%clk 0:02:42]} 6. f4 {[%clk 0:02:33]}  Nc6 {[%clk 0:02:39]} 7. h5 {[%clk 0:02:20]}  g5 {[%clk 0:02:27]} 8. Nf3 {[%clk 0:02:11]}  g4 {[%clk 0:02:25]} 9. Nd4 {[%clk 0:02:08]}  d6 {[%clk 0:02:22]} 10. Be3 {[%clk 0:01:59]}  Nf6 {[%clk 0:02:19]} 11. Bc4 {[%clk 0:01:53]}  Qe7 {[%clk 0:02:16]} 12. Qd2 {[%clk 0:01:41]}  Bg7 {[%clk 0:02:02]} 13. O-O-O {[%clk 0:01:40]}  Nxd4 {[%clk 0:01:50]} 14. Bxd4 {[%clk 0:01:38]}  Be6 {[%clk 0:01:50]} 15. Bd5 {[%clk 0:01:12]}  O-O-O {[%clk 0:01:15]} 16. Rhe1 {[%clk 0:00:53]}  c6 {[%clk 0:01:00]} 17. Bxa7 {[%clk 0:00:43]}  Nd7 {[%clk 0:00:36]} 18. Na4 {[%clk 0:00:33]}  cxd5 {[%clk 0:00:03]} 19. exd5 {[%clk 0:00:26]}  Nc5 {[%clk 0:00:03]} 20. Nb6+ {[%clk 0:00:21]}  Kc7 {[%clk 0:00:00]} 21. Qa5 {[%clk 0:00:22]} 1-0


[Site "https://www.chess.com"]